fUST/lending_fUST_20250319
["ID","MTS","AMOUNT","RATE_DAILY","PERIOD"]
[356348517,1742319040966,-500.0,9.856e-05,2]
[356348518,1742319040975,-1105.34,9.856e-05,2]
[356348519,1742319040984,-500.0,9.857e-05,2]
[356348520,1742319040993,-500.0,9.858e-05,2]
[356348521,1742319041003,-11070.77528713,0.0001,2]
[356348522,1742319041012,-726.96,0.00010127,2]
[356348523,1742319041021,-500.0,0.00010127,2]
[356348524,1742319041030,-773.97,0.00010127,2]
[356348525,1742319041040,-500.0,0.00010128,2]
[356348526,1742319041049,-807.94,0.00010128,2]
[356348527,1742319041058,-773.97,0.00010129,2]
[356348528,1742319041068,-773.97,0.00010129,2]
[356348529,1742319041077,-773.97,0.00010129,2]
[356348530,1742319041087,-773.97,0.00010129,2]
[356348531,1742319041096,-774.15,0.00010129,2]
[356348532,1742319041106,-500.0,0.0001013,2]
[356348533,1742319041115,-801.3,0.0001013,2]
[356348534,1742319041124,-500.0,0.0001013,2]
[356348535,1742319041132,-18315.72,0.0001013,2]
[356348536,1742319041142,-500.0,0.0001013,2]
[356348537,1742319041151,-1105.34,0.0001013,2]
[356348538,1742319041160,-500.0,0.00010131,2]
[356348539,1742319041169,-500.0,0.00010132,2]
[356348540,1742319041179,-399.0,0.00010285,2]
[356348541,1742319041188,-726.96,0.00010401,2]
[356348542,1742319041197,-579.38,0.00010401,2]
[356348543,1742319041206,-500.0,0.00010402,2]
[356348544,1742319041216,-807.94,0.00010402,2]
[356348545,1742319041225,-500.0,0.00010404,2]
[356348546,1742319041234,-801.3,0.00010404,2]
[356348547,1742319041243,-500.0,0.00010404,2]
[356348548,1742319041252,-18315.72,0.00010404,2]
[356348549,1742319041261,-500.0,0.00010404,2]
[356348550,1742319041270,-1105.34,0.00010404,2]
[356348551,1742319041279,-500.0,0.00010405,2]
[356348552,1742319041289,-500.0,0.00010406,2]
[356348553,1742319041298,-726.96,0.00010675,2]
[356348554,1742319041308,-500.0,0.00010676,2]
[356348555,1742319041320,-807.94,0.00010676,2]
[356348556,1742319041329,-500.0,0.00010678,2]
[356348557,1742319041338,-801.3,0.00010678,2]
[356348558,1742319041348,-500.0,0.00010678,2]
[356348559,1742319041359,-18315.72,0.00010678,2]
[356348560,1742319041368,-361.03,0.00010678,2]
[356348562,1742319041378,-1105.34,0.00010678,2]
[356348563,1742319041388,-500.0,0.00010679,2]
[356348564,1742319041400,-500.0,0.0001068,2]
[356348565,1742319041409,-726.96,0.00010949,2]
[356348566,1742319041419,-500.0,0.0001095,2]
[356348567,1742319041429,-807.94,0.0001095,2]
[356348568,1742319041439,-500.0,0.00010952,2]
[356348569,1742319041448,-801.3,0.00010952,2]
[356348570,1742319041458,-500.0,0.00010952,2]
[356348571,1742319041468,-18315.72,0.00010952,2]
[356348572,1742319041477,-1105.34,0.00010952,2]
[356348573,1742319041487,-500.0,0.00010953,2]
[356348574,1742319041496,-500.0,0.00010954,2]
[356348575,1742319041505,-666.084765,0.00010959,2]
[356348576,1742319041514,-1000.0,0.00010987,2]
[356348577,1742319041523,-189.35435377,0.00011126,2]
[356348578,1742319041533,-726.96,0.00011223,2]
[356348579,1742319041542,-500.0,0.00011224,2]
[356348580,1742319041551,-807.94,0.00011224,2]
[356348581,1742319041561,-397.174,0.00011226,2]
[356348582,1742319041571,-500.0,0.00011226,2]
[356348583,1742319041581,-801.3,0.00011226,2]
[356348584,1742319041591,-500.0,0.00011226,2]
[356348585,1742319041601,-2181.48260312,0.00011226,2]
[356348586,1742319041693,-500.0,8.483e-05,2]
[356348587,1742319041702,-592.98,8.483e-05,2]
[356348588,1742319041712,-500.0,8.76e-05,2]
[356348589,1742319041721,-6174.39130658,0.00011226,2]
[356348607,1742319043322,-291.13283178,0.00011226,2]
[356348608,1742319043375,-1223.11065515,0.00011226,2]
[356348626,1742319046504,-500.0,8.759e-05,2]
[356348627,1742319046514,-261.121,0.00010311,2]
[356348628,1742319046524,-565.323,0.00010311,2]
[356348629,1742319046534,-8445.60260337,0.00011226,2]
[356348630,1742319046544,-1105.34,0.00011226,2]
[356348631,1742319046553,-500.0,0.00011227,2]
[356348632,1742319046562,-500.0,0.00011228,2]
[356348633,1742319046571,-726.96,0.00011496,2]
[356348634,1742319046581,-500.0,0.00011498,2]
[356348635,1742319046591,-807.94,0.00011498,2]
[356348636,1742319046600,-500.0,0.000115,2]
[356348637,1742319046609,-801.3,0.000115,2]
[356348638,1742319046621,-500.0,0.000115,2]
[356348639,1742319046631,-18315.72,0.000115,2]
[356348640,1742319046640,-1105.34,0.000115,2]
[356348641,1742319046650,-500.0,0.00011501,2]
[356348642,1742319046660,-500.0,0.00011502,2]
[356348643,1742319046670,-726.96,0.0001177,2]
[356348644,1742319046679,-500.0,0.00011772,2]
[356348645,1742319046689,-807.94,0.00011772,2]
[356348646,1742319046699,-199.94,0.00011774,2]
[356348647,1742319046708,-801.3,0.00011774,2]
[356348648,1742319046718,-500.0,0.00011774,2]
[356348649,1742319046727,-18315.72,0.00011774,2]
[356348651,1742319046737,-1105.34,0.00011774,2]
[356348652,1742319046746,-174.79504818,0.00011775,2]
[356348653,1742319046758,-325.20495182,0.00011775,2]
[356348654,1742319046767,-500.0,0.00011776,2]
[356348655,1742319046777,-611.79504818,0.00012044,2]
[356348656,1742319046789,-115.16495182,0.00012044,2]
[356348658,1742319046798,-500.0,0.00012046,2]
[356348659,1742319046808,-405.23906418,0.00012046,2]
[356348661,1742319264077,3300.0,0.00014,30]
[356348689,1742320029116,-300.0,8.482e-05,2]
[356348690,1742320029138,-500.0,8.483e-05,2]
[356348691,1742320029159,-269.7,8.483e-05,2]
[356348692,1742320029181,-546.5155988,8.483e-05,2]
[356348693,1742320040173,24900.0,7.88e-05,2]
[356348694,1742320048244,-909.08838847,8.483e-05,2]
[356348730,1742320232642,-443.67064905,8.483e-05,2]
[356348731,1742320232655,-1100.0,8.483e-05,2]
[356348732,1742320232755,-960.68538111,8.483e-05,2]
[356348762,1742320240726,-4434.73998257,8.483e-05,2]
[356348763,1742320240736,-629.6,8.483e-05,2]
[356348764,1742320240748,-500.0,8.483e-05,2]
[356348765,1742320240758,-500.0,8.483e-05,2]
[356348766,1742320240770,-500.0,8.483e-05,2]
[356348767,1742320240780,-500.0,8.483e-05,2]
[356348768,1742320240790,-500.0,8.483e-05,2]
[356348769,1742320240799,-500.0,8.483e-05,2]
[356348770,1742320240809,-500.0,8.485e-05,2]
[356348771,1742320240818,-525.8,8.486e-05,2]
[356348772,1742320240828,-602.02,8.486e-05,2]
[356348773,1742320240837,-500.0,8.486e-05,2]
[356348774,1742320240847,-500.0,8.486e-05,2]
[356348775,1742320240856,-500.0,8.486e-05,2]
[356348776,1742320240865,-171.7432891,8.486e-05,2]
[356348777,1742320240874,-506.62,8.486e-05,2]
[356348778,1742320240884,-271.82,8.486e-05,2]
[356348779,1742320240893,-500.0,8.486e-05,2]
[356348780,1742320240904,-500.0,8.486e-05,2]
[356348781,1742320240914,-500.0,8.486e-05,2]
[356348782,1742320240923,-500.0,8.486e-05,2]
[356348783,1742320240936,-500.0,8.486e-05,2]
[356348784,1742320240946,-500.0,8.487e-05,2]
[356348785,1742320240956,-500.0,8.487e-05,2]
[356348786,1742320240966,-500.0,8.487e-05,2]
[356348787,1742320240976,-515.4990303,8.755e-05,2]
[356348788,1742320240986,-513.70584064,8.756e-05,2]
[356348789,1742320240996,-500.0,8.756e-05,2]
[356348790,1742320241006,-500.0,8.756e-05,2]
[356348791,1742320241015,-500.0,8.756e-05,2]
[356348792,1742320241025,-500.0,8.756e-05,2]
[356348793,1742320241035,-500.0,8.756e-05,2]
[356348794,1742320241045,-500.0,8.756e-05,2]
[356348795,1742320241055,-8394.7,8.757e-05,2]
[356348796,1742320241065,-500.0,8.757e-05,2]
[356348797,1742320241074,-500.0,8.757e-05,2]
[356348798,1742320241083,-506.62,8.76e-05,2]
[356348799,1742320241093,-500.0,8.76e-05,2]
[356348800,1742320241103,-500.0,8.76e-05,2]
[356348801,1742320241113,-500.0,8.76e-05,2]
[356348802,1742320241122,-500.0,8.761e-05,2]
[356348803,1742320241131,-500.0,8.761e-05,2]
[356348804,1742320241141,-500.0,8.761e-05,2]
[356348805,1742320241150,-500.0,9.03e-05,2]
[356348806,1742320241159,-500.0,9.03e-05,2]
[356348807,1742320241169,-8394.7,9.031e-05,2]
[356348808,1742320241179,-275.98247554,9.031e-05,2]
[356348809,1742320241189,-506.62,9.034e-05,2]
[356348810,1742320241198,-500.0,9.034e-05,2]
[356348811,1742320241207,-500.0,9.034e-05,2]
[356348812,1742320241217,-500.0,9.034e-05,2]
[356348813,1742320241226,-500.0,9.304e-05,2]
[356348814,1742320241236,-500.0,9.304e-05,2]
[356348815,1742320241245,-8394.7,9.305e-05,2]
[356348816,1742320241255,-669.56194914,9.305e-05,2]
[356348893,1742320246533,-211.49485547,9.305e-05,2]
[356348894,1742320246543,-506.62,9.308e-05,2]
[356348895,1742320246552,-297.61994453,9.308e-05,2]
[356348896,1742320246588,-202.38005547,9.308e-05,2]
[356348897,1742320246598,-462.91994448,9.308e-05,2]
[356348898,1742320246610,-37.08005552,9.308e-05,2]
[356348899,1742320246619,-500.0,9.308e-05,2]
[356348900,1742320246628,-160.71500974,9.461e-05,2]
[356348901,1742320246638,-139.76493474,9.462e-05,2]
[356348926,1742321102600,222.27,0.00014,30]
[356348931,1742321230084,-300.0,8.07e-05,2]
[356348932,1742321230107,-0.93264007,8.071e-05,2]
[356348933,1742321244086,-894.57136408,8.071e-05,2]
[356348940,1742321346103,-300.0,8.07e-05,2]
[356348941,1742321346127,-11909.75943743,8.071e-05,2]
[356348942,1742321347118,-3031.08925307,8.071e-05,2]
[356348943,1742321358084,-8461.1632,8.071e-05,2]
[356348964,1742321432817,-600.0,8.066e-05,2]
[356348967,1742321432827,-602.48410535,8.071e-05,2]
[356348969,1742321432837,-500.0,8.219e-05,2]
[356348971,1742321432848,-500.0,8.219e-05,2]
[356348973,1742321432858,-500.0,8.493e-05,2]
[356348975,1742321432868,-314.68018357,8.493e-05,2]
[356348977,1742321432878,-261.76685757,8.655e-05,2]
[356348979,1742321432887,-7250.10538601,8.655e-05,2]
[356348981,1742321432899,-3314.29308636,8.655e-05,2]
[356349010,1742321438501,-851.0299336,8.655e-05,2]
[356349011,1742321438511,-12.20746128,8.755e-05,2]
[356349012,1742321438553,-487.79253872,8.755e-05,2]
[356349013,1742321438563,-500.0,8.767e-05,2]
[356349014,1742321438572,-500.0,9.029e-05,2]
[356349015,1742321438582,-500.0,9.029e-05,2]
[356349016,1742321438591,-500.0,9.041e-05,2]
[356349017,1742321438600,-89.86934265,9.303e-05,2]
[356349018,1742321438612,-410.13065735,9.303e-05,2]
[356349019,1742321438621,-500.0,9.303e-05,2]
[356349020,1742321438631,-500.0,9.303e-05,2]
[356349021,1742321438640,-4950.41648954,9.303e-05,2]
[356349022,1742321438651,-500.0,9.303e-05,2]
[356349023,1742321438683,-1545.16351046,9.303e-05,2]
[356349024,1742321438693,-500.0,9.303e-05,2]
[356349025,1742321438702,-181.67405605,9.303e-05,2]
[356349026,1742321438714,-318.32594395,9.303e-05,2]
[356349027,1742321438723,-500.0,9.315e-05,2]
[356349028,1742321438733,-12458.93820146,9.437e-05,2]
[356349029,1742321438742,-160.0,9.437e-05,2]
[356349030,1742321438751,-833.90657078,9.437e-05,2]
[356349031,1742321438762,-417.85479977,9.437e-05,2]
[356349032,1742321438772,-160.0,9.437e-05,2]
[356349033,1742321438781,-134.51446974,9.577e-05,2]
[356349034,1742321438792,-365.48553026,9.577e-05,2]
[356349035,1742321438802,-145.61043146,9.577e-05,2]
[356349036,1742321438813,-354.38956854,9.577e-05,2]
[356349037,1742321438823,-240.5944804,9.577e-05,2]
[356349052,1742321440904,-259.4055196,9.577e-05,2]
[356349053,1742321440915,-550.86614134,9.577e-05,2]
[356349054,1742321440953,-1226.04132791,9.577e-05,2]
[356349055,1742321441006,-5218.67253075,9.577e-05,2]
[356349056,1742321441016,-500.0,9.577e-05,2]
[356349057,1742321441025,-395.73634393,9.577e-05,2]
[356349079,1742321443729,-104.26365607,9.577e-05,2]
[356349080,1742321443739,-587.37120308,9.577e-05,2]
[356349081,1742321443748,-500.0,9.589e-05,2]
[356349082,1742321443757,-1418.07064703,9.851e-05,2]
[356349083,1742321443767,-2655.01175858,9.851e-05,2]
[356349085,1742321446855,-4474.87245798,9.851e-05,2]
[356349086,1742321446867,-1472.91172183,9.851e-05,2]
[356349087,1742321446879,-209.45496762,9.851e-05,2]
[356349088,1742321446888,-500.0,9.851e-05,2]
[356349089,1742321446898,-127.04503238,9.851e-05,2]
[356349093,1742322188162,24900.0,7.413e-05,2]
[356349094,1742322330138,-224.26088763,8.137e-05,2]
[356349095,1742322390102,-177.10636203,8.137e-05,2]
[356349096,1742322404373,957.4751963,7.392e-05,2]
[356349097,1742322430153,-511.00693198,8.137e-05,2]
[356349098,1742322452208,-1083.98719743,8.137e-05,2]
[356349099,1742322452230,-500.0,8.219e-05,2]
[356349100,1742322452252,-196.08690704,8.329e-05,2]
[356349101,1742322452273,-413.37145173,8.329e-05,2]
[356349103,1742322525566,1836.82785605,8e-05,2]
[356349163,1742322631907,-186.62854827,8.329e-05,2]
[356349164,1742322631917,-300.0,8.331e-05,2]
[356349165,1742322631928,-500.0,8.332e-05,2]
[356349166,1742322631938,-500.0,8.332e-05,2]
[356349167,1742322631948,-500.0,8.332e-05,2]
[356349168,1742322631957,-500.0,8.332e-05,2]
[356349169,1742322631967,-473.01039316,8.332e-05,2]
[356349170,1742322632015,-159.77126,8.332e-05,2]
[356349171,1742322632025,-434.87460588,8.333e-05,2]
[356349172,1742322632034,-4612.77929582,8.333e-05,2]
[356349173,1742322632046,-1829.34367484,8.333e-05,2]
[356349187,1742322637874,-625.97698097,8.333e-05,2]
[356349228,1742322640022,-796.76260512,8.333e-05,2]
[356349234,1742322640078,-527.39719639,8.333e-05,2]
[356349236,1742322640088,-356.10293698,8.333e-05,2]
[356349238,1742322640097,-290.32147195,8.333e-05,2]
[356349270,1742322640382,-219.14577907,8.333e-05,2]
[356349272,1742322640391,-24.57039384,8.333e-05,7]
[356349283,1742322640501,-217.15,8.332e-05,2]
[356349284,1742322640510,-32250.61616525,8.333e-05,7]
[356349286,1742322640525,-500.0,8.333e-05,2]
[356349288,1742322640534,-500.0,8.333e-05,2]
[356349290,1742322640543,-500.0,8.333e-05,2]
[356349291,1742322640553,-500.0,8.333e-05,2]
[356349293,1742322640562,-5343.85,8.333e-05,2]
[356349294,1742322640571,-500.0,8.333e-05,2]
[356349296,1742322640580,-500.0,8.333e-05,2]
[356349297,1742322640590,-42869.4403702,8.334e-05,2]
[356349298,1742322640599,-500.0,8.493e-05,2]
[356349299,1742322640609,-500.0,8.606e-05,2]
[356349300,1742322640618,-500.0,8.607e-05,2]
[356349301,1742322640627,-500.0,8.607e-05,2]
[356349302,1742322640637,-384.22713789,8.607e-05,2]
[356349303,1742322640646,-500.0,8.607e-05,2]
[356349304,1742322640655,-5343.85,8.607e-05,2]
[356349305,1742322640668,-500.0,8.607e-05,2]
[356349306,1742322640677,-500.0,8.607e-05,2]
[356349307,1742322640687,-500.490838,8.755e-05,2]
[356349308,1742322640696,-223.85776677,8.756e-05,2]
[356349309,1742322640706,-500.0,8.767e-05,2]
[356349310,1742322640716,-500.0,8.88e-05,2]
[356349311,1742322640725,-500.0,8.881e-05,2]
[356349312,1742322640736,-500.0,8.881e-05,2]
[356349313,1742322640745,-500.0,8.881e-05,2]
[356349314,1742322640755,-3523.39785717,8.881e-05,2]
[356349353,1742322642863,-843.26447938,8.881e-05,2]
[356349354,1742322642876,-853.44283946,8.881e-05,2]
[356349355,1742322642947,-24.9178764,8.881e-05,2]
[356349356,1742322642959,-98.82694759,8.881e-05,2]
[356349357,1742322642968,-500.0,8.881e-05,2]
[356349358,1742322642978,-500.0,8.881e-05,2]
[356349359,1742322642989,-500.0,9.029e-05,2]
[356349360,1742322642999,-398.58776307,9.029e-05,2]
[356349361,1742322643008,-500.0,9.029e-05,2]
[356349362,1742322643018,-500.0,9.041e-05,2]
[356349363,1742322643027,-500.0,9.154e-05,2]
[356349364,1742322643037,-709.03532351,9.155e-05,2]
[356349365,1742322643047,-4406.125453,9.155e-05,2]
[356349366,1742322643056,-500.0,9.155e-05,2]
[356349367,1742322643066,-500.0,9.155e-05,2]
[356349368,1742322643075,-500.0,9.155e-05,2]
[356349369,1742322643085,-2527.47451283,9.155e-05,2]
[356349385,1742322645973,-1123.32659317,9.155e-05,2]
[356349386,1742322645987,-1693.048894,9.155e-05,2]
[356349387,1742322645996,-500.0,9.155e-05,2]
[356349388,1742322646006,-500.0,9.155e-05,2]
[356349389,1742322646016,-500.0,9.315e-05,2]
[356349390,1742322646026,-160.0,9.417e-05,2]
[356349391,1742322646036,-833.90657078,9.417e-05,2]
[356349392,1742322646046,-417.85479977,9.417e-05,2]
[356349393,1742322646056,-160.0,9.417e-05,2]
[356349394,1742322646066,-3072.68973545,9.417e-05,2]
[356349395,1742322646077,-2659.79,9.417e-05,2]
[356349396,1742322646088,-628.45000009,9.417e-05,2]
[356349410,1742323637132,-300.0,8.042e-05,2]
[356349411,1742323637165,-607.63668603,8.043e-05,2]
[356349412,1742323756168,-12209.75943743,8.043e-05,2]
[356349413,1742323758365,-11804.7762,8.043e-05,2]
[356349456,1742323832128,-277.82767654,8.043e-05,2]
[356349459,1742323832139,-3549.17550118,8.219e-05,2]
[356349464,1742323832179,-302.0,8.219e-05,2]
[356349470,1742323832235,-1517.49171399,8.219e-05,2]
[356349473,1742323832248,-6331.1561017,8.219e-05,2]
[356349475,1742323832258,-500.0,8.219e-05,2]
[356349476,1742323832268,-500.0,8.219e-05,2]
[356349478,1742323832277,-398.25469694,8.219e-05,2]
[356349480,1742323832287,-500.0,8.219e-05,2]
[356349482,1742323832297,-500.0,8.219e-05,2]
[356349483,1742323832306,-133.66029188,8.219e-05,2]
[356349540,1742323843117,-433.77970812,8.219e-05,2]
[356349541,1742323843127,-589.00133785,8.219e-05,2]
[356349542,1742323843136,-500.0,8.219e-05,2]
[356349543,1742323843146,-500.0,8.219e-05,2]
[356349544,1742323843156,-500.0,8.219e-05,2]
[356349545,1742323843165,-500.0,8.219e-05,2]
[356349546,1742323843175,-461.8982895,8.219e-05,2]
[356349547,1742323843185,-500.0,8.219e-05,2]
[356349548,1742323843195,-500.0,8.219e-05,2]
[356349549,1742323843205,-510.73074638,8.219e-05,2]
[356349550,1742323843214,-500.0,8.219e-05,2]
[356349551,1742323843224,-500.0,8.219e-05,2]
[356349552,1742323843234,-500.0,8.219e-05,2]
[356349553,1742323843243,-500.0,8.219e-05,2]
[356349555,1742323843254,-500.0,8.219e-05,2]
[356349557,1742323843264,-500.0,8.219e-05,2]
[356349559,1742323843273,-500.0,8.219e-05,2]
[356349561,1742323843283,-500.0,8.219e-05,2]
[356349563,1742323843292,-500.0,8.219e-05,2]
[356349564,1742323843301,-500.0,8.219e-05,2]
[356349566,1742323843311,-501.95841041,8.219e-05,2]
[356349569,1742323843320,-598.86234178,8.219e-05,2]
[356349570,1742323843329,-511.44538381,8.219e-05,2]
[356349573,1742323843339,-500.0,8.219e-05,2]
[356349575,1742323843349,-500.0,8.219e-05,2]
[356349577,1742323843358,-500.0,8.219e-05,2]
[356349578,1742323843367,-500.0,8.219e-05,2]
[356349579,1742323843377,-500.0,8.219e-05,2]
[356349580,1742323843386,-500.0,8.219e-05,2]
[356349582,1742323843396,-500.0,8.219e-05,2]
[356349584,1742323843405,-500.0,8.219e-05,2]
[356349586,1742323843414,-500.0,8.219e-05,2]
[356349588,1742323843423,-500.0,8.219e-05,2]
[356349590,1742323843433,-500.0,8.219e-05,2]
[356349592,1742323843442,-500.0,8.219e-05,2]
[356349594,1742323843451,-500.0,8.219e-05,2]
[356349596,1742323843460,-500.0,8.219e-05,2]
[356349598,1742323843470,-500.0,8.219e-05,2]
[356349600,1742323843480,-512.49068824,8.219e-05,2]
[356349602,1742323843490,-500.0,8.219e-05,2]
[356349604,1742323843500,-500.0,8.219e-05,2]
[356349606,1742323843515,-589.07045565,8.219e-05,2]
[356349608,1742323843524,-500.0,8.219e-05,2]
[356349610,1742323843534,-500.0,8.219e-05,2]
[356349612,1742323843543,-500.0,8.219e-05,2]
[356349614,1742323843552,-500.0,8.219e-05,2]
[356349616,1742323843562,-500.0,8.219e-05,2]
[356349618,1742323843571,-500.0,8.219e-05,2]
[356349620,1742323843581,-500.0,8.219e-05,2]
[356349622,1742323843591,-612.21252568,8.219e-05,2]
[356349624,1742323843601,-500.0,8.219e-05,2]
[356349626,1742323843611,-500.0,8.219e-05,2]
[356349628,1742323843622,-500.0,8.219e-05,2]
[356349630,1742323843632,-500.0,8.219e-05,2]
[356349633,1742323843643,-898.9,8.219e-05,2]
[356349634,1742323843654,-898.9,8.219e-05,2]
[356349635,1742323843664,-600.0,8.327e-05,2]
[356349636,1742323843675,-304.41222412,8.331e-05,2]
[356349637,1742323843685,-898.9,8.331e-05,2]
[356349638,1742323843695,-898.9,8.331e-05,2]
[356349639,1742323843707,-344.01281358,8.332e-05,2]
[356349640,1742323843718,-507.37644692,8.332e-05,2]
[356349642,1742323843729,-260.13257563,8.332e-05,2]
[356349644,1742323843739,-500.0,8.332e-05,2]
[356349646,1742323843751,-500.0,8.332e-05,2]
[356349647,1742323843770,-395.55146878,8.332e-05,2]
[356349649,1742323843780,-507.0255921,8.332e-05,2]
[356349651,1742323843790,-500.0,8.332e-05,2]
[356349653,1742323843803,-500.0,8.332e-05,2]
[356349655,1742323843812,-500.0,8.332e-05,2]
[356349656,1742323843822,-500.0,8.332e-05,2]
[356349658,1742323843834,-500.0,8.332e-05,2]
[356349659,1742323843843,-500.0,8.332e-05,2]
[356349661,1742323843853,-225.86235389,8.332e-05,2]
[356349663,1742323843863,-500.0,8.332e-05,2]
[356349664,1742323843872,-500.0,8.332e-05,2]
[356349665,1742323843882,-500.0,8.332e-05,2]
[356349666,1742323843891,-500.0,8.332e-05,2]
[356349667,1742323843902,-500.0,8.332e-05,2]
[356349668,1742323843912,-500.0,8.332e-05,2]
[356349669,1742323843922,-500.0,8.332e-05,2]
[356349670,1742323843933,-500.0,8.332e-05,2]
[356349671,1742323843942,-589.33565572,8.332e-05,2]
[356349672,1742323843952,-500.0,8.332e-05,2]
[356349673,1742323843962,-500.0,8.332e-05,2]
[356349674,1742323843972,-500.89800163,8.332e-05,2]
[356349675,1742323843981,-500.0,8.332e-05,2]
[356349676,1742323843991,-501.34943084,8.332e-05,2]
[356349677,1742323844001,-501.75618186,8.332e-05,2]
[356349678,1742323844017,-501.28780785,8.332e-05,2]
[356349679,1742323844027,-500.0,8.332e-05,2]
[356349680,1742323844037,-591.02857737,8.332e-05,2]
[356349681,1742323844047,-503.99869706,8.332e-05,2]
[356349682,1742323844057,-500.0,8.332e-05,2]
[356349683,1742323844067,-500.0,8.332e-05,2]
[356349684,1742323844077,-500.0,8.332e-05,2]
[356349685,1742323844087,-500.0,8.332e-05,2]
[356349686,1742323844098,-500.0,8.332e-05,2]
[356349687,1742323844108,-500.0,8.332e-05,2]
[356349688,1742323844118,-500.0,8.332e-05,2]
[356349689,1742323844129,-500.0,8.332e-05,2]
[356349690,1742323844140,-434.23875154,8.332e-05,2]
[356349699,1742323846123,-65.76124846,8.332e-05,2]
[356349700,1742323846134,-527.02804716,8.332e-05,2]
[356349701,1742323846144,-500.0,8.332e-05,2]
[356349702,1742323846154,-318.44044258,8.332e-05,2]
[356349703,1742323846232,-181.55955742,8.332e-05,2]
[356349705,1742323846241,-500.0,8.332e-05,2]
[356349706,1742323846251,-500.0,8.332e-05,2]
[356349707,1742323846263,-500.0,8.332e-05,2]
[356349708,1742323846272,-500.0,8.332e-05,2]
[356349709,1742323846282,-500.0,8.332e-05,2]
[356349711,1742323846291,-500.0,8.332e-05,2]
[356349713,1742323846301,-521.36792255,8.332e-05,2]
[356349714,1742323846310,-500.0,8.332e-05,2]
[356349715,1742323846320,-500.0,8.332e-05,2]
[356349716,1742323846330,-500.0,8.332e-05,2]
[356349718,1742323846339,-500.0,8.332e-05,2]
[356349720,1742323846349,-500.0,8.332e-05,2]
[356349722,1742323846359,-500.0,8.332e-05,2]
[356349724,1742323846368,-540.59395731,8.332e-05,2]
[356349726,1742323846378,-500.0,8.332e-05,2]
[356349728,1742323846387,-500.0,8.332e-05,2]
[356349730,1742323846397,-500.0,8.332e-05,2]
[356349731,1742323846407,-500.0,8.332e-05,2]
[356349732,1742323846417,-500.96075137,8.332e-05,2]
[356349734,1742323846427,-500.0,8.332e-05,2]
[356349735,1742323846437,-500.0,8.332e-05,2]
[356349736,1742323846447,-520.66534353,8.332e-05,2]
[356349737,1742323846456,-500.0,8.332e-05,2]
[356349738,1742323846466,-531.09065085,8.332e-05,2]
[356349739,1742323846475,-500.0,8.332e-05,2]
[356349740,1742323846484,-467.2554633,8.332e-05,2]
[356349741,1742323846494,-508.13480804,8.332e-05,2]
[356349742,1742323846503,-500.0,8.332e-05,2]
[356349743,1742323846514,-518.95583319,8.332e-05,2]
[356349744,1742323846524,-500.0,8.332e-05,2]
[356349745,1742323846533,-151.0,8.332e-05,2]
[356349746,1742323846544,-181.99504,8.332e-05,2]
[356349747,1742323846553,-500.0,8.332e-05,2]
[356349748,1742323846563,-500.0,8.332e-05,2]
[356349749,1742323846574,-159.29558943,8.332e-05,2]
[356349750,1742323846583,-500.0,8.332e-05,2]
[356349751,1742323846592,-500.0,8.332e-05,2]
[356349752,1742323846602,-500.0,8.332e-05,2]
[356349753,1742323846612,-500.0,8.332e-05,2]
[356349754,1742323846622,-500.0,8.332e-05,2]
[356349755,1742323846632,-500.0,8.332e-05,2]
[356349756,1742323846642,-500.0,8.332e-05,2]
[356349757,1742323846651,-500.0,8.332e-05,2]
[356349758,1742323846661,-500.0,8.332e-05,2]
[356349759,1742323846670,-500.0,8.332e-05,2]
[356349760,1742323846680,-500.0,8.332e-05,2]
[356349761,1742323846690,-1102.43,8.332e-05,2]
[356349762,1742323846699,-898.9,8.332e-05,2]
[356349763,1742323846709,-500.0,8.332e-05,2]
[356349764,1742323846719,-500.0,8.333e-05,2]
[356349765,1742323846729,-500.0,8.333e-05,2]
[356349766,1742323846739,-385.0972421,8.333e-05,2]
[356349767,1742323846748,-502.8641707,8.333e-05,2]